[Event "Early-Titled-Tuesday-Blitz-September-26-2023"]
[Site "Chess.com"]
[Date "2023.09.26"]
[Round "2"]
[White "nikitakhoroshev"]
[Black "jraosam"]
[Result "1/2-1/2"]
[WhiteElo "2633"]
[BlackElo "2051"]
[TimeControl "180+1"]
[EndTime "8:16:24 PDT"]
[Termination "Game drawn by agreement"]

1. Nf3 {[%clk 0:03:00.9]} 1... Nf6 {[%clk 0:02:58.8]} 2. g3 {[%clk 0:03:00.2]}
2... d5 {[%clk 0:02:56.9]} 3. Bg2 {[%clk 0:02:59.8]} 3... Bf5 {[%clk 0:02:57.3]}
4. c4 {[%clk 0:02:59.5]} 4... e6 {[%clk 0:02:56.2]} 5. Qb3 {[%clk 0:02:59.4]}
5... Nc6 {[%clk 0:02:52.1]} 6. O-O {[%clk 0:02:41.2]} 6... dxc4 {[%clk
0:02:35.6]} 7. Qxc4 {[%clk 0:02:40.6]} 7... Qd5 {[%clk 0:02:24.9]} 8. Qxd5
{[%clk 0:02:40.3]} 8... exd5 {[%clk 0:02:23.8]} 9. d3 {[%clk 0:02:35.2]} 9...
Bc5 {[%clk 0:02:21.5]} 10. Nc3 {[%clk 0:02:34.6]} 10... O-O-O {[%clk 0:02:18.5]}
11. Bg5 {[%clk 0:02:32.8]} 11... Be7 {[%clk 0:02:15.9]} 12. Rac1 {[%clk
0:02:32.3]} 12... h6 {[%clk 0:02:14.3]} 13. Bf4 {[%clk 0:02:29.1]} 13... Bd6
{[%clk 0:02:09.9]} 14. Bxd6 {[%clk 0:02:24.1]} 14... Rxd6 {[%clk 0:02:10.1]} 15.
Nb5 {[%clk 0:02:22.7]} 15... Rd7 {[%clk 0:02:05.1]} 16. Nfd4 {[%clk 0:02:22.6]}
16... Nxd4 {[%clk 0:02:03.3]} 17. Nxd4 {[%clk 0:02:23.5]} 17... Be6 {[%clk
0:02:03.2]} 18. b4 {[%clk 0:02:20.6]} 18... Kb8 {[%clk 0:02:00.6]} 19. Rc3
{[%clk 0:02:19.7]} 19... Rhd8 {[%clk 0:01:53.8]} 20. Rfc1 {[%clk 0:02:19.6]}
20... Ng8 {[%clk 0:01:53.3]} 21. a4 {[%clk 0:02:16.8]} 21... Ne7 {[%clk
0:01:52.8]} 22. e3 {[%clk 0:01:53.5]} 22... Nf5 {[%clk 0:01:51.1]} 23. Nxf5
{[%clk 0:01:53.7]} 23... Bxf5 {[%clk 0:01:52]} 24. d4 {[%clk 0:01:54.6]} 24...
Be6 {[%clk 0:01:43]} 25. Bf1 {[%clk 0:01:54]} 25... Rc8 {[%clk 0:01:41.4]} 26.
f3 {[%clk 0:01:54]} 26... c6 {[%clk 0:01:40.4]} 27. Kf2 {[%clk 0:01:54.6]} 27...
f6 {[%clk 0:01:37.8]} 28. b5 {[%clk 0:01:53.9]} 28... Rdc7 {[%clk 0:01:36.8]}
29. bxc6 {[%clk 0:01:54.2]} 29... Rxc6 {[%clk 0:01:36.5]} 30. Rxc6 {[%clk
0:01:53.6]} 30... Rxc6 {[%clk 0:01:37.4]} 31. Rxc6 {[%clk 0:01:50.4]} 31... bxc6
{[%clk 0:01:37.3]} 32. Ke1 {[%clk 0:01:49.9]} 32... Kc7 {[%clk 0:01:37.1]} 33.
Kd2 {[%clk 0:01:50.5]} 33... c5 {[%clk 0:01:34.6]} 34. Kc3 {[%clk 0:01:49.4]}
34... Kd6 {[%clk 0:01:32.1]} 35. a5 {[%clk 0:01:47.8]} 35... f5 {[%clk 0:01:29]}
36. Bb5 {[%clk 0:01:46.6]} 36... c4 {[%clk 0:01:28.2]} 37. Be8 {[%clk
0:01:43.9]} 37... Ke7 {[%clk 0:01:22.6]} 38. Bc6 {[%clk 0:01:42]} 38... Kd6
{[%clk 0:01:22.3]} 39. Bb7 {[%clk 0:01:40.8]} 39... Bd7 {[%clk 0:01:17.5]} 40.
e4 {[%clk 0:01:40.2]} 40... fxe4 {[%clk 0:01:16.5]} 41. fxe4 {[%clk 0:01:41.1]}
41... Bc6 {[%clk 0:01:11.7]} 42. e5+ {[%clk 0:01:39.2]} 42... Kc7 {[%clk
0:01:09.9]} 43. Bxc6 {[%clk 0:01:19.2]} 43... Kxc6 {[%clk 0:01:08.4]} 44. Kb4
{[%clk 0:01:20.1]} 44... a6 {[%clk 0:01:05.9]} 45. g4 {[%clk 0:01:19.5]} 45...
g6 {[%clk 0:00:59.6]} 46. h4 {[%clk 0:01:19.1]} 46... h5 {[%clk 0:00:58.5]} 47.
g5 {[%clk 0:01:18.7]} 47... Kd7 {[%clk 0:00:57.9]} 1/2-1/2

[Event "Early-Titled-Tuesday-Blitz-September-26-2023"]
[Site "Chess.com"]
[Date "2023.09.26"]
[Round "2"]
[White "blitzo_vich"]
[Black "jcibarra"]
[Result "0-1"]
[WhiteElo "2619"]
[BlackElo "2947"]
[TimeControl "180+1"]
[EndTime "8:16:26 PDT"]
[Termination "jcibarra won by resignation"]

1. c4 {[%clk 0:02:59.6]} 1... e5 {[%clk 0:02:59.9]} 2. Nc3 {[%clk 0:02:58.9]}
2... Nf6 {[%clk 0:02:59.9]} 3. Nf3 {[%clk 0:02:57.5]} 3... e4 {[%clk 0:02:59.9]}
4. Ng5 {[%clk 0:02:56.7]} 4... c6 {[%clk 0:03:00.5]} 5. Qa4 {[%clk 0:02:56.3]}
5... Qe7 {[%clk 0:02:59]} 6. d3 {[%clk 0:02:44.1]} 6... exd3 {[%clk 0:02:53.2]}
7. e3 {[%clk 0:02:43.4]} 7... Na6 {[%clk 0:02:48.6]} 8. Bxd3 {[%clk 0:02:39.9]}
8... Nc5 {[%clk 0:02:47.9]} 9. Qc2 {[%clk 0:02:39.7]} 9... Nxd3+ {[%clk
0:02:43.5]} 10. Qxd3 {[%clk 0:02:40.6]} 10... g6 {[%clk 0:02:41.2]} 11. b3
{[%clk 0:02:32.6]} 11... Bg7 {[%clk 0:02:40.4]} 12. Bb2 {[%clk 0:02:32.8]} 12...
O-O {[%clk 0:02:39.2]} 13. O-O {[%clk 0:02:31]} 13... d5 {[%clk 0:02:18.6]} 14.
cxd5 {[%clk 0:02:29.4]} 14... Rd8 {[%clk 0:02:18.5]} 15. e4 {[%clk 0:02:09.1]}
15... cxd5 {[%clk 0:02:01.6]} 16. exd5 {[%clk 0:02:08.7]} 16... Bf5 {[%clk
0:01:55.8]} 17. Qf3 {[%clk 0:02:00.6]} 17... h6 {[%clk 0:01:43.8]} 18. Rfe1
{[%clk 0:01:57.3]} 18... Qd7 {[%clk 0:01:24.9]} 19. Nh3 {[%clk 0:01:42.4]} 19...
g5 {[%clk 0:01:13.8]} 20. Qg3 {[%clk 0:01:11.7]} 20... Nh5 {[%clk 0:01:12.7]}
21. Qe3 {[%clk 0:01:08.2]} 21... Re8 {[%clk 0:01:12.8]} 22. Qd2 {[%clk
0:00:50.1]} 22... Bxh3 {[%clk 0:01:09.7]} 23. gxh3 {[%clk 0:00:49.2]} 23... Qxh3
{[%clk 0:01:06.9]} 24. Re3 {[%clk 0:00:45.8]} 24... Qg4+ {[%clk 0:00:49.6]} 25.
Kh1 {[%clk 0:00:44.7]} 25... Bd4 {[%clk 0:00:47.1]} 26. Rg1 {[%clk 0:00:40.3]}
26... Bxe3 {[%clk 0:00:45]} 27. fxe3 {[%clk 0:00:36.7]} 27... Qf3+ {[%clk
0:00:44.8]} 28. Rg2 {[%clk 0:00:36.7]} 28... Rxe3 {[%clk 0:00:42.6]} 0-1

[Event "Early-Titled-Tuesday-Blitz-September-26-2023"]
[Site "Chess.com"]
[Date "2023.09.26"]
[Round "2"]
[White "Austen48"]
[Black "simplerXiao"]
[Result "0-1"]
[WhiteElo "2321"]
[BlackElo "2533"]
[TimeControl "180+1"]
[EndTime "8:16:32 PDT"]
[Termination "simplerXiao won on time"]

1. d4 {[%clk 0:03:00.9]} 1... d5 {[%clk 0:02:54.7]} 2. c4 {[%clk 0:03:00.2]}
2... e6 {[%clk 0:02:54.3]} 3. Nc3 {[%clk 0:03:00.1]} 3... Nf6 {[%clk 0:02:53.6]}
4. cxd5 {[%clk 0:03:00]} 4... exd5 {[%clk 0:02:53.4]} 5. Bg5 {[%clk 0:02:59.9]}
5... Bb4 {[%clk 0:02:52.8]} 6. e3 {[%clk 0:02:56.2]} 6... c5 {[%clk 0:02:52.1]}
7. Nf3 {[%clk 0:02:50.9]} 7... Qa5 {[%clk 0:02:44.7]} 8. Nd2 {[%clk 0:01:57.7]}
8... Nbd7 {[%clk 0:02:39.9]} 9. Qc2 {[%clk 0:01:45.3]} 9... cxd4 {[%clk
0:02:36]} 10. exd4 {[%clk 0:01:44.7]} 10... O-O {[%clk 0:02:36.1]} 11. Be2
{[%clk 0:01:36.9]} 11... Re8 {[%clk 0:02:35.6]} 12. Be3 {[%clk 0:01:35.9]} 12...
Nf8 {[%clk 0:02:28.1]} 13. O-O {[%clk 0:01:34.2]} 13... Ng6 {[%clk 0:02:27.7]}
14. a3 {[%clk 0:01:10.5]} 14... Bd6 {[%clk 0:02:23.4]} 15. g3 {[%clk 0:01:00.6]}
15... a6 {[%clk 0:02:15.4]} 16. Bf3 {[%clk 0:01:00.4]} 16... Be6 {[%clk
0:02:12.7]} 17. Bg2 {[%clk 0:00:59.8]} 17... Rac8 {[%clk 0:02:11.3]} 18. Qb3
{[%clk 0:00:53.9]} 18... Qc7 {[%clk 0:02:09.7]} 19. Rac1 {[%clk 0:00:52]} 19...
Qe7 {[%clk 0:02:09.6]} 20. Na4 {[%clk 0:00:49.1]} 20... b5 {[%clk 0:01:55.9]}
21. Nc3 {[%clk 0:00:46.9]} 21... Bb8 {[%clk 0:01:51.2]} 22. Nxd5 {[%clk
0:00:44.2]} 22... Nxd5 {[%clk 0:01:51.2]} 23. Bxd5 {[%clk 0:00:44]} 23... Bh3
{[%clk 0:01:51.6]} 24. Bg2 {[%clk 0:00:39.7]} 24... Bxg2 {[%clk 0:01:51.2]} 25.
Kxg2 {[%clk 0:00:39.9]} 25... Qb7+ {[%clk 0:01:51.8]} 26. Kg1 {[%clk 0:00:38.2]}
26... Rcd8 {[%clk 0:01:51.3]} 27. Rc2 {[%clk 0:00:33]} 27... h5 {[%clk
0:01:51.3]} 28. Rfc1 {[%clk 0:00:32.4]} 28... h4 {[%clk 0:01:51.6]} 29. Nf1
{[%clk 0:00:29.9]} 29... Qf3 {[%clk 0:01:48.4]} 30. Nd2 {[%clk 0:00:24.8]} 30...
Qh5 {[%clk 0:01:43.9]} 31. Nf1 {[%clk 0:00:23.3]} 31... h3 {[%clk 0:01:42.4]}
32. Bd2 {[%clk 0:00:06.5]} 32... Rxd4 {[%clk 0:01:39.1]} 33. Rc8 {[%clk
0:00:05.6]} 33... Rdd8 {[%clk 0:01:39.2]} 34. Rxd8 {[%clk 0:00:05.1]} 34... Rxd8
{[%clk 0:01:39.5]} 35. Qe3 {[%clk 0:00:05.5]} 35... Ne5 {[%clk 0:01:35]} 36. f4
{[%clk 0:00:03.7]} 36... Ba7 {[%clk 0:01:19.5]} 37. Qxa7 {[%clk 0:00:02.5]}
37... Qe2 {[%clk 0:01:18.9]} 0-1

[Event "Early-Titled-Tuesday-Blitz-September-26-2023"]
[Site "Chess.com"]
[Date "2023.09.26"]
[Round "2"]
[White "kidagent"]
[Black "venturov"]
[Result "1-0"]
[WhiteElo "2239"]
[BlackElo "2453"]
[TimeControl "180+1"]
[EndTime "8:16:33 PDT"]
[Termination "kidagent won on time"]

1. c4 {[%clk 0:03:00.9]} 1... e6 {[%clk 0:02:59.2]} 2. g3 {[%clk 0:03:00.7]}
2... d5 {[%clk 0:02:59]} 3. cxd5 {[%clk 0:03:00.9]} 3... exd5 {[%clk 0:02:57.1]}
4. Nf3 {[%clk 0:03:00.8]} 4... Nf6 {[%clk 0:02:50.2]} 5. Bg2 {[%clk 0:03:00.2]}
5... c5 {[%clk 0:02:47.3]} 6. d4 {[%clk 0:02:59.8]} 6... c4 {[%clk 0:02:47.1]}
7. O-O {[%clk 0:02:57.6]} 7... Nc6 {[%clk 0:02:42.3]} 8. Nc3 {[%clk 0:02:49.6]}
8... a6 {[%clk 0:02:40.4]} 9. Bg5 {[%clk 0:02:47.1]} 9... Be6 {[%clk 0:02:36.6]}
10. b3 {[%clk 0:02:43.3]} 10... b5 {[%clk 0:02:19.9]} 11. bxc4 {[%clk
0:02:41.8]} 11... bxc4 {[%clk 0:02:20.8]} 12. Qa4 {[%clk 0:02:37.2]} 12... Qd7
{[%clk 0:02:02.8]} 13. Bxf6 {[%clk 0:02:34.4]} 13... gxf6 {[%clk 0:02:03.6]} 14.
e4 {[%clk 0:02:30.8]} 14... Nb4 {[%clk 0:01:36.7]} 15. Qxd7+ {[%clk 0:02:22.3]}
15... Kxd7 {[%clk 0:01:37.6]} 16. exd5 {[%clk 0:02:20.9]} 16... Bf5 {[%clk
0:00:50.7]} 17. a3 {[%clk 0:02:03.9]} 17... Nc2 {[%clk 0:00:43.9]} 18. Rab1
{[%clk 0:02:03.4]} 18... Bd6 {[%clk 0:00:42.9]} 19. Rb7+ {[%clk 0:02:01.3]}
19... Kc8 {[%clk 0:00:37.2]} 20. Rxf7 {[%clk 0:01:59]} 20... Rf8 {[%clk
0:00:31.9]} 21. Rg7 {[%clk 0:01:51.8]} 21... Nxa3 {[%clk 0:00:27.8]} 22. Na4
{[%clk 0:01:48.8]} 22... Rb8 {[%clk 0:00:23.6]} 23. Nh4 {[%clk 0:01:47.9]} 23...
Bd7 {[%clk 0:00:21.9]} 24. Nc5 {[%clk 0:01:45.4]} 24... Rd8 {[%clk 0:00:19.6]}
25. Nxd7 {[%clk 0:01:42.1]} 25... Rxd7 {[%clk 0:00:20.5]} 26. Bh3 {[%clk
0:01:41.9]} 26... Rb7 {[%clk 0:00:19.4]} 27. Re1 {[%clk 0:01:32.6]} 27... c3
{[%clk 0:00:11.6]} 28. Re8+ {[%clk 0:01:32.3]} 28... Kc7 {[%clk 0:00:10.8]} 29.
Rxd7+ {[%clk 0:01:32.9]} 29... Kb6 {[%clk 0:00:11.4]} 30. Rxb7+ {[%clk
0:01:28.4]} 30... Kxb7 {[%clk 0:00:12.3]} 31. Bf5 {[%clk 0:01:25.2]} 31... c2
{[%clk 0:00:10.7]} 32. Bxc2 {[%clk 0:01:18.1]} 32... Nxc2 {[%clk 0:00:11.6]} 33.
Nf5 {[%clk 0:01:15.6]} 33... Bb4 {[%clk 0:00:11.3]} 34. Re2 {[%clk 0:01:09.7]}
1-0

[Event "Early-Titled-Tuesday-Blitz-September-26-2023"]
[Site "Chess.com"]
[Date "2023.09.26"]
[Round "2"]
[White "KatakuriDono"]
[Black "sonicdravise"]
[Result "0-1"]
[WhiteElo "2330"]
[BlackElo "2675"]
[TimeControl "180+1"]
[EndTime "8:16:35 PDT"]
[Termination "sonicdravise won by resignation"]

1. d4 {[%clk 0:03:00.9]} 1... g6 {[%clk 0:03:00.3]} 2. c4 {[%clk 0:03:00.6]}
2... Bg7 {[%clk 0:03:00.8]} 3. Nc3 {[%clk 0:03:01]} 3... d6 {[%clk 0:03:01.2]}
4. e4 {[%clk 0:03:01.1]} 4... e5 {[%clk 0:03:01.2]} 5. d5 {[%clk 0:03:00.9]}
5... a5 {[%clk 0:03:01]} 6. Nge2 {[%clk 0:03:00.8]} 6... Na6 {[%clk 0:03:01.1]}
7. Ng3 {[%clk 0:03:00.6]} 7... Ne7 {[%clk 0:02:59.6]} 8. Be2 {[%clk 0:02:59.5]}
8... Nc5 {[%clk 0:02:57.8]} 9. h4 {[%clk 0:02:59.1]} 9... h5 {[%clk 0:02:51.6]}
10. Bg5 {[%clk 0:02:47.8]} 10... f6 {[%clk 0:02:37.3]} 11. Be3 {[%clk
0:02:47.7]} 11... b6 {[%clk 0:02:35]} 12. Qd2 {[%clk 0:02:44]} 12... f5 {[%clk
0:02:31.6]} 13. Bg5 {[%clk 0:02:43.5]} 13... f4 {[%clk 0:02:25.2]} 14. Nf1
{[%clk 0:02:41.6]} 14... Ba6 {[%clk 0:02:13.4]} 15. g3 {[%clk 0:02:29.8]} 15...
Qd7 {[%clk 0:02:07.7]} 16. gxf4 {[%clk 0:02:23.3]} 16... exf4 {[%clk 0:02:07.9]}
17. f3 {[%clk 0:02:15.6]} 17... O-O-O {[%clk 0:01:59.8]} 18. Bxf4 {[%clk
0:02:14.6]} 18... Rhf8 {[%clk 0:01:37.8]} 19. Bg5 {[%clk 0:02:10.7]} 19... Rde8
{[%clk 0:01:38.2]} 20. O-O-O {[%clk 0:02:07.3]} 20... Na4 {[%clk 0:01:34.6]} 21.
Nxa4 {[%clk 0:01:57.5]} 21... Qxa4 {[%clk 0:01:35.5]} 22. Kb1 {[%clk 0:01:44.3]}
22... Bxc4 {[%clk 0:01:30.1]} 23. Bxc4 {[%clk 0:01:43.7]} 23... Qxc4 {[%clk
0:01:29.8]} 24. Ne3 {[%clk 0:01:43]} 24... Qb5 {[%clk 0:01:27.7]} 25. Rc1 {[%clk
0:01:39]} 25... Rxf3 {[%clk 0:01:18.3]} 26. Nc4 {[%clk 0:01:32.7]} 26... Kb7
{[%clk 0:01:10.7]} 27. e5 {[%clk 0:01:22.5]} 27... Nxd5 {[%clk 0:00:57.1]} 28.
exd6 {[%clk 0:01:18.4]} 28... Nc3+ {[%clk 0:00:50.9]} 29. Ka1 {[%clk 0:01:12]}
29... Qxc4 {[%clk 0:00:48.6]} 30. bxc3 {[%clk 0:00:44.2]} 30... Rxc3 {[%clk
0:00:47.8]} 31. Qg2+ {[%clk 0:00:30.1]} 31... Rf3+ {[%clk 0:00:47.7]} 32. Kb1
{[%clk 0:00:28.7]} 32... Qb4+ {[%clk 0:00:48.1]} 0-1

[Event "Early-Titled-Tuesday-Blitz-September-26-2023"]
[Site "Chess.com"]
[Date "2023.09.26"]
[Round "2"]
[White "cristiano78"]
[Black "GaalZsoka"]
[Result "1-0"]
[WhiteElo "2236"]
[BlackElo "2453"]
[TimeControl "180+1"]
[EndTime "8:16:38 PDT"]
[Termination "cristiano78 won by resignation"]

1. d4 {[%clk 0:03:00.9]} 1... Nf6 {[%clk 0:02:55.1]} 2. c4 {[%clk 0:03:00.4]}
2... c5 {[%clk 0:02:55.1]} 3. d5 {[%clk 0:02:56.6]} 3... e6 {[%clk 0:02:55.3]}
4. Nc3 {[%clk 0:02:55.2]} 4... exd5 {[%clk 0:02:55]} 5. cxd5 {[%clk 0:02:54.7]}
5... d6 {[%clk 0:02:54.6]} 6. Nf3 {[%clk 0:02:54.7]} 6... g6 {[%clk 0:02:52.9]}
7. h3 {[%clk 0:02:54.7]} 7... Bg7 {[%clk 0:02:53]} 8. e4 {[%clk 0:02:55.1]} 8...
O-O {[%clk 0:02:52.7]} 9. Bd3 {[%clk 0:02:54.8]} 9... Re8 {[%clk 0:02:42]} 10.
O-O {[%clk 0:02:54.1]} 10... Nfd7 {[%clk 0:02:31.6]} 11. a4 {[%clk 0:02:52.2]}
11... Na6 {[%clk 0:02:31.5]} 12. Nb5 {[%clk 0:02:48.2]} 12... Qe7 {[%clk
0:02:14.4]} 13. Bf4 {[%clk 0:02:44.8]} 13... Ne5 {[%clk 0:02:02.6]} 14. Nxe5
{[%clk 0:02:40.5]} 14... dxe5 {[%clk 0:01:52.3]} 15. Be3 {[%clk 0:02:39.4]}
15... Nb4 {[%clk 0:01:49.1]} 16. Rc1 {[%clk 0:02:38.3]} 16... b6 {[%clk
0:01:44]} 17. d6 {[%clk 0:02:34.5]} 17... Qd8 {[%clk 0:01:37.1]} 18. Nc7 {[%clk
0:02:30.9]} 18... Bd7 {[%clk 0:01:18.7]} 19. Nxa8 {[%clk 0:02:26.8]} 19... Qxa8
{[%clk 0:01:18.9]} 20. Bc4 {[%clk 0:02:21.5]} 20... Qxe4 {[%clk 0:01:15.5]} 21.
Bd2 {[%clk 0:02:02.3]} 21... Nc6 {[%clk 0:01:06.6]} 22. Bc3 {[%clk 0:01:57.2]}
22... Nd4 {[%clk 0:01:05.9]} 23. Re1 {[%clk 0:01:48.4]} 23... Qa8 {[%clk
0:00:59.4]} 24. Bxd4 {[%clk 0:01:46.6]} 24... cxd4 {[%clk 0:01:00.3]} 25. Qb3
{[%clk 0:01:42.5]} 25... Rf8 {[%clk 0:00:44.8]} 26. Bd5 {[%clk 0:01:42.1]} 26...
Qd8 {[%clk 0:00:42.2]} 27. Rc7 {[%clk 0:01:41.2]} 27... Kh8 {[%clk 0:00:20.3]}
28. Bxf7 {[%clk 0:01:32.8]} 28... Bf5 {[%clk 0:00:09]} 29. Qd5 {[%clk
0:01:28.4]} 29... e4 {[%clk 0:00:08.8]} 30. g4 {[%clk 0:01:24.4]} 30... Qg5
{[%clk 0:00:04.6]} 31. Rxe4 {[%clk 0:01:17.1]} 31... Qc1+ {[%clk 0:00:04.1]} 32.
Rxc1 {[%clk 0:01:14.5]} 32... Bxe4 {[%clk 0:00:04.4]} 33. Qxe4 {[%clk
0:01:13.5]} 33... Rxf7 {[%clk 0:00:05]} 34. Rc8+ {[%clk 0:01:11.3]} 1-0

[Event "Early-Titled-Tuesday-Blitz-September-26-2023"]
[Site "Chess.com"]
[Date "2023.09.26"]
[Round "2"]
[White "borocotoajua"]
[Black "nrvignesh"]
[Result "0-1"]
[WhiteElo "2605"]
[BlackElo "2860"]
[TimeControl "180+1"]
[EndTime "8:16:39 PDT"]
[Termination "nrvignesh won on time"]

1. d4 {[%clk 0:02:58.6]} 1... Nf6 {[%clk 0:02:58.6]} 2. Nf3 {[%clk 0:02:58.6]}
2... c5 {[%clk 0:02:57.6]} 3. d5 {[%clk 0:02:52.2]} 3... e6 {[%clk 0:02:57.3]}
4. c4 {[%clk 0:02:51.4]} 4... exd5 {[%clk 0:02:57.7]} 5. cxd5 {[%clk 0:02:52.3]}
5... d6 {[%clk 0:02:58.6]} 6. Nc3 {[%clk 0:02:52.3]} 6... g6 {[%clk 0:02:59.2]}
7. e4 {[%clk 0:02:50]} 7... Bg7 {[%clk 0:03:00.1]} 8. Be2 {[%clk 0:02:50.2]}
8... O-O {[%clk 0:02:58.7]} 9. O-O {[%clk 0:02:50.1]} 9... a6 {[%clk 0:02:58.2]}
10. a4 {[%clk 0:02:49.2]} 10... Bg4 {[%clk 0:02:58.2]} 11. Nd2 {[%clk
0:02:27.9]} 11... Bxe2 {[%clk 0:02:57.6]} 12. Qxe2 {[%clk 0:02:28.8]} 12... Nbd7
{[%clk 0:02:57.5]} 13. Nc4 {[%clk 0:02:28.6]} 13... Qe7 {[%clk 0:02:53.4]} 14.
Bf4 {[%clk 0:02:27.7]} 14... Ne8 {[%clk 0:02:51.7]} 15. Bg3 {[%clk 0:02:19.6]}
15... h5 {[%clk 0:02:44.1]} 16. h3 {[%clk 0:02:18.7]} 16... Ne5 {[%clk
0:02:33.7]} 17. Nxe5 {[%clk 0:02:06.9]} 17... dxe5 {[%clk 0:02:33.5]} 18. d6
{[%clk 0:02:02.2]} 18... Qxd6 {[%clk 0:02:10.1]} 19. Rfd1 {[%clk 0:01:59]} 19...
Qe6 {[%clk 0:02:09.2]} 20. Nd5 {[%clk 0:01:57.7]} 20... Rc8 {[%clk 0:02:09]} 21.
Rac1 {[%clk 0:01:49.3]} 21... Nf6 {[%clk 0:02:07.9]} 22. Bh4 {[%clk 0:01:18.8]}
22... Rfd8 {[%clk 0:01:57.4]} 23. Bxf6 {[%clk 0:01:13.9]} 23... Bxf6 {[%clk
0:01:56.6]} 24. Qe3 {[%clk 0:01:04.8]} 24... Be7 {[%clk 0:01:54.5]} 25. Rc2
{[%clk 0:00:52.9]} 25... c4 {[%clk 0:01:43.2]} 26. Rcd2 {[%clk 0:00:44.6]} 26...
Bc5 {[%clk 0:01:37.8]} 27. Qg5 {[%clk 0:00:44.7]} 27... Kg7 {[%clk 0:01:26.4]}
28. Nc7 {[%clk 0:00:27.6]} 28... Qe7 {[%clk 0:01:15.2]} 29. Ne6+ {[%clk
0:00:02.4]} 29... Qxe6 {[%clk 0:01:04.2]} 30. Rxd8 {[%clk 0:00:01.4]} 30... Be7
{[%clk 0:01:03.9]} 0-1

[Event "Early-Titled-Tuesday-Blitz-September-26-2023"]
[Site "Chess.com"]
[Date "2023.09.26"]
[Round "2"]
[White "Aygehovit1992"]
[Black "Wizard_97"]
[Result "0-1"]
[WhiteElo "2711"]
[BlackElo "2553"]
[TimeControl "180+1"]
[EndTime "8:16:39 PDT"]
[Termination "Wizard_97 won on time"]

1. e4 {[%clk 0:02:54.7]} 1... c5 {[%clk 0:02:59.1]} 2. Nc3 {[%clk 0:02:54.1]}
2... Nc6 {[%clk 0:02:58.9]} 3. Bb5 {[%clk 0:02:53.9]} 3... Nd4 {[%clk
0:02:58.6]} 4. Nf3 {[%clk 0:02:54.6]} 4... g6 {[%clk 0:02:57.8]} 5. O-O {[%clk
0:02:54.4]} 5... Nxb5 {[%clk 0:02:56.9]} 6. Nxb5 {[%clk 0:02:54.4]} 6... d5
{[%clk 0:02:57.6]} 7. exd5 {[%clk 0:02:45.2]} 7... a6 {[%clk 0:02:57.8]} 8. Nc3
{[%clk 0:02:43.7]} 8... Nf6 {[%clk 0:02:58.2]} 9. d4 {[%clk 0:02:22.8]} 9... c4
{[%clk 0:02:56]} 10. Re1 {[%clk 0:02:17]} 10... Nxd5 {[%clk 0:02:52.6]} 11. Bg5
{[%clk 0:02:16.7]} 11... Be6 {[%clk 0:02:46]} 12. Qd2 {[%clk 0:02:05.7]} 12...
b5 {[%clk 0:02:39.8]} 13. Ne4 {[%clk 0:01:59.5]} 13... h6 {[%clk 0:02:08]} 14.
Bh4 {[%clk 0:01:57.6]} 14... g5 {[%clk 0:02:06.2]} 15. Bg3 {[%clk 0:01:57.2]}
15... Bg7 {[%clk 0:02:06.4]} 16. Nc5 {[%clk 0:01:52.6]} 16... Bf5 {[%clk
0:02:02.7]} 17. h4 {[%clk 0:01:46.6]} 17... g4 {[%clk 0:01:49.7]} 18. Ne5 {[%clk
0:01:45.2]} 18... O-O {[%clk 0:01:49.3]} 19. c3 {[%clk 0:01:17.5]} 19... e6
{[%clk 0:01:47.5]} 20. a4 {[%clk 0:01:12.1]} 20... Nb6 {[%clk 0:01:37.7]} 21.
Bf4 {[%clk 0:00:54.2]} 21... Qxh4 {[%clk 0:01:32.2]} 22. Bg3 {[%clk 0:00:49.6]}
22... Qg5 {[%clk 0:01:29.6]} 23. Qxg5 {[%clk 0:00:48.3]} 23... hxg5 {[%clk
0:01:30.5]} 24. Nc6 {[%clk 0:00:49.2]} 24... Bf6 {[%clk 0:01:22.1]} 25. Be5
{[%clk 0:00:47.6]} 25... Kg7 {[%clk 0:01:19.2]} 26. Bxf6+ {[%clk 0:00:43.7]}
26... Kxf6 {[%clk 0:01:17.4]} 27. Re5 {[%clk 0:00:19]} 27... Rfc8 {[%clk
0:01:14]} 28. axb5 {[%clk 0:00:08.5]} 28... axb5 {[%clk 0:01:14.9]} 29. Rxa8
{[%clk 0:00:02.8]} 29... Rxa8 {[%clk 0:01:10.3]} 30. Nb4 {[%clk 0:00:02.4]}
30... g3 {[%clk 0:01:09.5]} 31. fxg3 {[%clk 0:00:02.4]} 31... Ra1+ {[%clk
0:01:09.6]} 32. Kh2 {[%clk 0:00:02]} 32... Rb1 {[%clk 0:01:10.2]} 0-1

[Event "Early-Titled-Tuesday-Blitz-September-26-2023"]
[Site "Chess.com"]
[Date "2023.09.26"]
[Round "2"]
[White "rk12387"]
[Black "Arek_pacitan"]
[Result "0-1"]
[WhiteElo "2401"]
[BlackElo "2679"]
[TimeControl "180+1"]
[EndTime "8:16:45 PDT"]
[Termination "Arek_pacitan won by checkmate"]

1. e4 {[%clk 0:02:59.9]} 1... e5 {[%clk 0:02:59.6]} 2. Nc3 {[%clk 0:03:00.1]}
2... Nc6 {[%clk 0:02:58.4]} 3. Nf3 {[%clk 0:03:00.3]} 3... Nf6 {[%clk
0:02:58.7]} 4. Bb5 {[%clk 0:02:59.9]} 4... Bc5 {[%clk 0:02:57.3]} 5. O-O {[%clk
0:02:58.5]} 5... d6 {[%clk 0:02:54.7]} 6. d4 {[%clk 0:02:58.3]} 6... exd4 {[%clk
0:02:53.1]} 7. Nxd4 {[%clk 0:02:59.1]} 7... Bd7 {[%clk 0:02:53.7]} 8. Nf5 {[%clk
0:02:59.1]} 8... Bxf5 {[%clk 0:02:51.4]} 9. exf5 {[%clk 0:02:59.4]} 9... O-O
{[%clk 0:02:51.9]} 10. Bg5 {[%clk 0:02:58.8]} 10... h6 {[%clk 0:02:48.6]} 11.
Bh4 {[%clk 0:02:57.4]} 11... Nd4 {[%clk 0:02:38.1]} 12. Nd5 {[%clk 0:02:46.7]}
12... Nxb5 {[%clk 0:02:32.8]} 13. Nxf6+ {[%clk 0:02:41.7]} 13... gxf6 {[%clk
0:02:33.7]} 14. a4 {[%clk 0:02:37.6]} 14... Qd7 {[%clk 0:01:43.6]} 15. axb5
{[%clk 0:02:30]} 15... Qxf5 {[%clk 0:01:42.2]} 16. Ra4 {[%clk 0:02:11.9]} 16...
Kh7 {[%clk 0:01:39.9]} 17. Qd2 {[%clk 0:02:00.9]} 17... Rg8 {[%clk 0:01:25.6]}
18. Rf4 {[%clk 0:01:52.2]} 18... Qg6 {[%clk 0:01:25.5]} 19. g3 {[%clk
0:01:44.9]} 19... f5 {[%clk 0:01:24.7]} 20. Qd3 {[%clk 0:01:37.9]} 20... Qe6
{[%clk 0:01:05]} 21. b4 {[%clk 0:01:32.2]} 21... Bb6 {[%clk 0:01:03]} 22. Rxf5
{[%clk 0:01:11.8]} 22... Rg6 {[%clk 0:01:02.5]} 23. Rf6 {[%clk 0:01:02.2]} 23...
Qe8 {[%clk 0:01:02.1]} 24. Qf5 {[%clk 0:00:46.3]} 24... Kg7 {[%clk 0:01:01.6]}
25. Rxg6+ {[%clk 0:00:44.5]} 25... fxg6 {[%clk 0:01:02.5]} 26. Qf6+ {[%clk
0:00:32.8]} 26... Kg8 {[%clk 0:01:02.3]} 27. Rd1 {[%clk 0:00:30]} 27... Qf7
{[%clk 0:01:00.9]} 28. Rd3 {[%clk 0:00:25.5]} 28... g5 {[%clk 0:00:44.7]} 29.
Qxh6 {[%clk 0:00:23.7]} 29... gxh4 {[%clk 0:00:43.5]} 30. Qxh4 {[%clk
0:00:23.6]} 30... Qxf2+ {[%clk 0:00:42.8]} 31. Kh1 {[%clk 0:00:23.6]} 31... Qg1#
{[%clk 0:00:43.7]} 0-1